bitfinex/quotes_SOLUSD_20250912
["timestamp","ask_amount","ask_price","bid_price","bid_amount"]
[1757694821199,3.49215735,239.08,239.07,32.78]
[1757694821397,3.49215735,239.08,239.06,49.12999998]
[1757694821718,2.81215735,239.07,239.06,49.12999998]
[1757694823295,3.49215735,239.07,239.06,49.12999998]
[1757694823501,3.49212168,239.07,239.06,49.12999998]
[1757694824017,7.67499698,239.07,239.06,49.12999998]
[1757694826913,33.67499698,239.07,239.06,49.12999998]
[1757694827110,22.24314567,239.07,239.01,0.13]
[1757694827305,26.0,239.03,239.01,0.13]
[1757694827511,2.81212168,239.02,239.01,0.13]
[1757694828017,3.52212168,239.02,239.01,0.13]
[1757694828212,2.81212168,239.02,239.01,0.13]
[1757694829013,3.52212168,239.02,239.01,0.13]
[1757694829310,11.81683241,239.02,239.01,0.13]
[1757694832411,7.70587199,239.02,239.01,0.13]
[1757694832610,11.81683241,239.02,239.01,0.13]
[1757694837328,7.70587199,239.02,239.01,0.13]
[1757694837528,25.41242642,239.02,239.01,1e-08]
[1757694837826,39.59559401,239.0,238.99,1e-08]
[1757694838003,82.77120978,239.0,238.99,1e-08]
[1757694838204,83.43120978,239.0,238.99,1e-08]
[1757694838427,79.91867611,239.0,238.99,1e-08]
[1757694839024,81.59333228,239.0,238.97,0.03]
[1757694839204,8.295411,238.98,238.97,0.03]
[1757694839408,11.10753268,238.98,238.97,0.03]
[1757694839609,11.76753268,238.98,238.97,0.03]
[1757694842010,11.76753268,238.98,238.95,0.03]
[1757694842011,39.59559401,238.96,238.95,0.03]
[1757694842226,56.76735306,238.96,238.95,0.03]
[1757694842539,53.91867611,238.96,238.95,0.03]
[1757694843211,26.0,238.93,238.91,0.1]
[1757694843539,6.9976231,238.92,238.91,0.1]
[1757694843746,11.76858352,238.92,238.91,0.1]
[1757694843909,7.6576231,238.92,238.91,0.1]
[1757694844115,11.76126948,238.92,238.91,0.1]
[1757694847243,25.35686349,238.92,238.91,0.1]
[1757694847413,69.19140175,238.92,238.86,0.03]
[1757694847619,4.18637752,238.87,238.86,0.03]
[1757694848249,4.18637752,238.87,238.86,0.71]
[1757694848620,4.18637752,238.87,238.86,0.03]
[1757694849018,4.18637752,238.87,238.86,0.71]
[1757694849220,58.74,238.88,238.86,0.03]
[1757694849521,4.18603367,238.89,238.86,0.71]
[1757694849728,26.0,238.87,238.86,0.71]
[1757694851225,26.66,238.87,238.86,0.03]
[1757694851424,0.66,238.87,238.86,0.03]
[1757694851622,4.84637752,238.87,238.86,0.03]
[1757694851835,8.95733794,238.87,238.86,0.03]
[1757694852055,11.09221255,238.87,238.86,0.03]
[1757694852260,4.18637752,238.87,238.86,0.03]
[1757694852845,36.94637752,238.87,238.86,0.71]
[1757694853047,4.18637752,238.87,238.86,0.71]
[1757694853276,30.18637752,238.87,238.86,0.71]
[1757694853439,26.0,238.87,238.86,0.71]
[1757694853976,30.18637752,238.87,238.86,0.71]
[1757694854343,26.0,238.87,238.86,0.71]
[1757694854660,2.79187957,238.91,238.86,0.71]
[1757694854839,55.68730951,238.92,238.86,0.71]
[1757694855037,81.68730951,238.92,238.86,0.71]
[1757694855455,4.18584853,238.91,238.86,0.71]
[1757694856363,4.84584853,238.91,238.86,0.03]
[1757694856545,0.66,238.9,238.86,0.03]
[1757694856751,4.18584853,238.91,238.87,0.68]
[1757694856956,4.18584853,238.91,238.88,0.68]
[1757694857362,0.66,238.9,238.86,0.03]
[1757694857749,26.0,238.88,238.86,0.03]
[1757694857953,0.66,238.89,238.86,0.03]
[1757694858158,0.66,238.87,238.86,0.03]
[1757694858358,30.84637752,238.87,238.86,0.03]
[1757694858580,30.18637752,238.87,238.86,0.03]
[1757694859477,4.18585182,238.9,238.86,0.71]
[1757694859661,26.0,238.88,238.87,0.68]
[1757694860268,26.0,238.88,238.86,0.03]
[1757694860570,30.18621978,238.88,238.86,0.71]
[1757694861369,30.18621978,238.88,238.86,0.03]
[1757694861574,30.18621978,238.88,238.86,0.71]
[1757694861575,30.18620511,238.88,238.86,0.71]
[1757694862274,30.18620511,238.88,238.86,0.03]
[1757694862569,33.42,238.91,238.86,0.03]
[1757694862570,32.76,238.91,238.87,0.68]
[1757694862774,2.18396998,238.93,238.88,0.68]
[1757694863082,26.0,238.9,238.89,0.68]
[1757694863339,26.0,238.91,238.89,0.68]
[1757694863485,4.18532624,238.93,238.86,0.03]
[1757694863654,26.0,238.91,238.9,0.68]
[1757694864166,4.18476333,238.97,238.9,0.68]
[1757694864380,0.06,238.98,238.9,0.68]
[1757694864577,0.06,238.98,238.91,4.18567661]
[1757694864881,0.06,238.98,238.92,0.67]
[1757694865461,0.06,238.98,238.93,13.59559401]
[1757694865773,0.06,238.98,238.94,0.67]
[1757694866676,0.06,238.98,238.96,4.1848008]
[1757694867061,0.06,238.98,238.97,0.67]
[1757694868394,0.06,238.98,238.93,13.59559401]
[1757694868395,0.06,238.98,238.94,4.85505647]
[1757694868567,0.06,238.98,238.96,0.67]
[1757694868986,0.06,238.98,238.97,0.67]
[1757694869463,0.06,238.98,238.95,0.67]
[1757694870394,0.06,238.98,238.93,0.67]
[1757694870575,0.06,238.98,238.94,0.67]
[1757694870775,0.06,238.98,238.95,0.67]
[1757694872697,0.06,238.98,238.93,4.85516776]
[1757694872872,0.06,238.98,238.94,0.67]
[1757694873267,3.39354497,238.98,238.93,53.31516774]
[1757694873485,3.39354497,238.98,238.93,53.98516774]
[1757694873667,2.69354497,238.98,238.94,0.67]
[1757694873867,2.69354497,238.98,238.95,0.67]
[1757694874090,4.24448923,238.98,238.95,0.67]
[1757694874287,4.24448923,238.98,238.93,49.79999998]
[1757694874589,4.24448923,238.98,238.93,49.12999998]
[1757694874783,0.7,238.97,238.91,4.85563912]
[1757694875088,3.33354497,238.97,238.91,37.59563912]
[1757694875481,3.33354497,238.97,238.91,37.62563912]
[1757694875792,2.63354497,238.97,238.92,0.67]
[1757694875983,2.63354497,238.97,238.93,0.67]
[1757694876187,6.8780342,238.98,238.94,0.67]
[1757694876394,0.7,238.97,238.91,0.03]
[1757694876573,2.63354497,238.92,238.91,0.03]
[1757694877278,3.33354497,238.92,238.91,0.03]
[1757694878181,33.51904639,238.92,238.91,0.03]
[1757694878396,38.95435042,238.92,238.91,0.03]
[1757694878872,33.68726048,238.92,238.91,0.03]
[1757694879079,36.32080545,238.92,238.91,0.03]
[1757694879475,33.68726048,238.92,238.91,0.03]
[1757694879678,32.98726048,238.92,238.91,0.03]
[1757694879882,36.32080545,238.92,238.91,0.03]
[1757694880502,33.68726048,238.92,238.91,0.03]
[1757694880706,36.32080545,238.92,238.91,0.03]
[1757694883479,79.59498533,238.92,238.91,0.03]
[1757694886687,93.19057934,238.92,238.91,0.03]
[1757694887382,96.6959074,238.92,238.91,0.03]
[1757694887582,63.9559074,238.92,238.91,0.03]
[1757694888011,26.0,238.89,238.88,0.03]
[1757694888186,64.17530403,238.89,238.88,0.03]
[1757694888510,32.13530403,238.89,238.88,0.03]
[1757694888807,78.47089804,238.89,238.88,0.03]
[1757694889813,86.09479419,238.89,238.88,0.03]
[1757694890792,82.65692508,238.89,238.88,0.03]
[1757694891192,68.36133107,238.89,238.88,0.03]
[1757694892405,69.06133107,238.89,238.88,0.03]
[1757694896116,71.24572507,238.89,238.88,0.03]
[1757694897914,70.54572507,238.89,238.88,0.03]
[1757694898210,71.25572507,238.89,238.88,0.03]
[1757694899620,70.54572507,238.89,238.88,0.03]
[1757694899813,70.56572507,238.89,238.88,0.03]
[1757694900001,84.87131908,238.89,238.88,0.03]
[1757694904420,2.63354497,238.86,238.85,0.03]
[1757694904717,35.39354497,238.86,238.85,0.03]
[1757694904908,38.19530403,238.86,238.85,0.03]
[1757694905116,38.90530403,238.86,238.85,0.03]
[1757694905322,38.19530403,238.86,238.85,0.03]
[1757694906026,30.18690336,238.84,238.83,0.03]
[1757694906216,68.38220739,238.84,238.83,0.03]
[1757694906413,68.38220739,238.84,238.82,0.2]
[1757694906414,71.01389268,238.84,238.82,0.2]
[1757694906612,2.80017335,238.83,238.81,0.13]
[1757694906812,38.02708994,238.82,238.81,1e-08]
[1757694907120,26.0,238.79,238.76,0.89]
[1757694907420,61.39354497,238.78,238.76,0.2]
[1757694907634,61.5601536,238.77,238.73,0.03]
[1757694907796,2.63354497,238.74,238.73,0.03]
[1757694908000,32.76,238.75,238.74,0.69]
[1757694908314,42.38123145,238.75,238.73,0.03]
[1757694908520,2.79920481,238.74,238.73,0.03]
[1757694909305,0.71,238.74,238.73,0.03]
[1757694909599,35.55770059,238.74,238.73,0.72]
[1757694909907,35.55770059,238.74,238.73,0.03]
[1757694909908,32.76,238.74,238.73,0.03]
[1757694910420,4.1884221,238.76,238.73,0.72]
[1757694910723,2.63354497,238.76,238.73,0.72]
[1757694911017,62.9479883,238.78,238.74,0.69]
[1757694911319,2.63354497,238.75,238.73,0.03]
[1757694911523,35.39354497,238.75,238.73,0.03]
[1757694911900,32.76,238.75,238.74,0.69]
[1757694912101,38.1895956,238.75,238.74,0.69]
[1757694912801,42.37770607,238.75,238.73,0.03]
[1757694913022,39.58202664,238.75,238.73,0.03]
[1757694913608,2.79613621,238.74,238.73,0.03]
[1757694914301,32.98479332,238.74,238.73,0.03]
[1757694915521,35.61833829,238.74,238.73,0.03]
[1757694916423,10.32833829,238.74,238.73,0.03]
[1757694916620,9.61833829,238.74,238.73,0.03]
[1757694917305,10.32833829,238.74,238.73,0.03]
[1757694918838,9.61833829,238.74,238.73,0.03]
[1757694919127,32.76,238.77,238.73,0.72]
[1757694919305,5.43027663,238.76,238.73,0.72]
[1757694919506,2.63354497,238.76,238.73,0.72]
[1757694921331,5.43027663,238.76,238.73,0.72]
[1757694921915,5.43027663,238.76,238.74,0.69]
[1757694922115,5.43027663,238.76,238.75,0.69]
[1757694923212,2.79673166,238.76,238.75,0.69]
[1757694923531,2.79673166,238.77,238.75,4.87848167]
[1757694923832,36.26520452,238.83,238.76,0.69]
[1757694923833,2.79673166,238.82,238.76,0.69]
[1757694924012,2.79673166,238.81,238.76,0.69]
[1757694924219,2.79673166,238.8,238.76,0.69]
[1757694924426,2.79673166,238.84,238.77,14.65845792]
[1757694924619,2.79673166,238.83,238.78,0.66]
[1757694924936,2.79673166,238.82,238.78,0.66]
[1757694925133,2.79673166,238.81,238.78,0.66]
[1757694925315,2.79673166,238.8,238.78,0.66]
[1757694925516,2.79673166,238.82,238.78,0.66]
[1757694925733,2.79673166,238.81,238.78,0.66]
[1757694925916,26.0,238.86,238.78,0.66]
[1757694925917,5.43027663,238.85,238.78,0.66]
[1757694926118,2.79673166,238.84,238.78,0.66]
[1757694926427,2.79673166,238.83,238.79,4.18778005]
[1757694926632,2.79673166,238.82,238.8,0.66]
[1757694926835,2.79673166,238.84,238.8,0.66]
[1757694927133,2.79673166,238.83,238.8,0.66]
[1757694927330,3.66179182,238.88,238.8,0.66]
[1757694927331,2.79673166,238.82,238.8,0.66]
[1757694927528,2.79673166,238.86,238.8,0.66]
[1757694927724,2.79673166,238.85,238.8,0.66]
[1757694927923,2.79673166,238.84,238.8,0.66]
[1757694928134,2.79673166,238.83,238.8,0.66]
[1757694928328,2.79673166,238.86,238.8,0.66]
[1757694928634,2.79673166,238.85,238.8,4.84751959]
[1757694928823,2.79673166,238.84,238.81,0.66]
[1757694929024,2.79673166,238.83,238.81,0.66]
[1757694929236,2.79673166,238.85,238.81,80.26]
[1757694929427,2.79673166,238.84,238.82,0.66]
[1757694929625,2.79673166,238.85,238.82,0.66]
[1757694929939,0.06,238.83,238.82,0.66]
[1757694930633,0.06,238.83,238.81,79.6]
[1757694930845,6.91704057,238.82,238.81,79.6]
[1757694931538,6.91704057,238.82,238.77,79.6]
[1757694931713,4.12030891,238.8,238.77,79.6]
[1757694931918,3.50673166,238.8,238.77,79.6]
[1757694932116,4.12030891,238.78,238.72,0.66]
[1757694932328,4.12030891,238.74,238.71,0.13]
[1757694933530,4.83030891,238.74,238.71,0.13]
[1757694933729,30.83030891,238.74,238.71,0.13]
[1757694934047,33.62704057,238.74,238.71,0.13]
[1757694934230,37.10569768,238.74,238.71,0.13]
[1757694934433,37.81569768,238.74,238.71,0.13]
[1757694934820,37.10569768,238.74,238.71,0.13]
[1757694935046,37.81569768,238.74,238.71,0.13]
[1757694936442,70.57569768,238.74,238.71,0.13]
[1757694938539,30.12030891,238.72,238.71,0.13]
[1757694938737,6.91704057,238.72,238.71,0.13]
[1757694938935,7.62704057,238.72,238.71,0.13]
[1757694939119,11.74734948,238.72,238.7,0.03]
[1757694939320,69.79734948,238.71,238.7,0.03]
[1757694939839,70.50734948,238.71,238.7,0.03]
[1757694940331,74.696533,238.71,238.7,0.03]
[1757694940529,88.29212701,238.71,238.7,0.03]
[1757694940739,8.24061782,238.69,238.67,1e-08]
[1757694940929,26.0,238.65,238.56,0.66]
[1757694941128,30.12030891,238.62,238.56,0.66]
[1757694941535,30.12030891,238.62,238.51,4.29257306]
[1757694941536,30.83030891,238.62,238.53,0.66]
[1757694941735,45.93415001,238.62,238.53,0.66]
[1757694942347,63.72050757,238.62,238.53,0.66]
[1757694942543,63.72050757,238.62,238.51,0.1]
[1757694942544,4.12030891,238.54,238.51,0.1]
[1757694942739,4.12030891,238.52,238.51,0.1]
[1757694943360,30.12030891,238.52,238.51,0.1]
[1757694943645,26.0,238.52,238.51,0.1]
[1757694943841,30.12030891,238.52,238.51,0.1]
[1757694944230,4.12030891,238.52,238.51,0.1]
[1757694945934,30.12030891,238.52,238.51,0.1]
[1757694946135,58.78,238.52,238.51,0.1]
[1757694946334,62.90030891,238.52,238.51,0.1]
[1757694946750,30.12030891,238.52,238.51,0.1]
[1757694946927,0.68,238.59,238.51,0.77]
[1757694947130,4.12030891,238.54,238.51,0.77]
[1757694947343,32.78,238.58,238.52,0.67]
[1757694947344,2.79622273,238.57,238.52,0.67]
[1757694947542,26.0,238.54,238.53,0.67]
[1757694947744,4.12030891,238.55,238.53,0.67]
[1757694947948,30.12030891,238.55,238.54,0.67]
[1757694948249,26.0,238.53,238.51,0.13]
[1757694948436,4.12030891,238.52,238.51,0.13]
[1757694948749,26.0,238.52,238.51,0.13]
[1757694949053,30.12030891,238.52,238.51,0.13]
[1757694949732,62.90030891,238.52,238.51,0.13]
[1757694950658,63.58030891,238.52,238.51,0.13]
[1757694950867,59.46,238.52,238.51,0.13]
[1757694951162,30.80030891,238.52,238.51,0.13]
[1757694951333,26.0,238.52,238.51,0.13]
[1757694951537,4.12030891,238.52,238.51,0.13]
[1757694951837,4.12030891,238.52,238.51,0.8]
[1757694952343,4.12030891,238.52,238.51,0.13]
[1757694952857,4.12030891,238.52,238.51,0.8]
[1757694953035,4.12030891,238.53,238.51,0.8]
[1757694953235,30.12030891,238.53,238.51,0.8]
[1757694953435,30.12030891,238.53,238.52,0.67]
[1757694953761,39.59559401,238.49,238.48,0.03]
[1757694954057,83.42602288,238.49,238.46,0.03]
[1757694954258,4.12030891,238.47,238.46,0.03]
[1757694954460,42.90284461,238.47,238.46,0.03]
[1757694954639,46.41134762,238.47,238.46,0.03]
[1757694954835,50.6047472,238.47,238.46,0.03]
[1757694955140,52.28284592,238.47,238.46,0.03]
[1757694956443,9.38000131,238.47,238.46,0.03]
[1757694956649,48.77434291,238.47,238.46,0.03]
[1757694956945,18.75926692,238.47,238.46,0.03]
[1757694957152,48.77434291,238.47,238.46,0.03]
[1757694957544,51.55784467,238.47,238.46,0.03]
[1757694957744,52.27784467,238.47,238.46,0.03]
[1757694958051,65.87343868,238.47,238.46,0.03]
[1757694958974,33.07343868,238.47,238.46,0.03]
[1757694959172,65.87343868,238.47,238.46,0.03]
[1757694960951,14.56444509,238.47,238.46,0.03]
[1757694961163,47.09624419,238.47,238.46,0.03]
[1757694961361,51.55784467,238.47,238.46,0.03]
[1757694961768,65.87343868,238.47,238.46,0.03]
[1757694962774,26.0,238.44,238.41,0.1]
[1757694963071,36.10284461,238.42,238.41,0.1]
[1757694963856,58.8,238.42,238.41,0.81]
[1757694964173,36.10284461,238.42,238.41,0.81]
[1757694964558,10.10284461,238.42,238.41,0.81]
[1757694964767,2.18823811,238.47,238.41,5.00442439]
[1757694964966,2.18823811,238.47,238.42,0.71]
[1757694965166,34.98823811,238.47,238.42,0.71]
[1757694965478,60.98823811,238.47,238.42,0.71]
[1757694965677,2.18823811,238.47,238.42,4.9042733]
[1757694965878,10.10284461,238.51,238.43,0.71]
[1757694966086,32.8,238.5,238.43,0.71]
[1757694966685,58.8,238.5,238.43,0.71]
[1757694966865,10.10284461,238.49,238.43,0.71]
[1757694967580,0.06,238.47,238.43,0.71]
[1757694968477,0.06,238.47,238.43,4.904068]
[1757694968780,0.06,238.47,238.44,0.71]
[1757694969366,0.06,238.47,238.44,0.43996877]
[1757694969563,26.0,238.46,238.43,79.6]
[1757694969756,26.0,238.46,238.41,79.73]
[1757694969958,26.0,238.46,238.41,83.9244531]
[1757694970163,26.06,238.47,238.41,83.9244531]
[1757694970363,26.0,238.46,238.41,83.9244531]
[1757694971481,26.0,238.46,238.42,0.71]
[1757694971675,26.0,238.46,238.43,0.71]
[1757694971872,30.19358796,238.46,238.41,79.73]
[1757694972078,0.72,238.45,238.41,0.13]
[1757694972277,0.06,238.47,238.42,0.71]
[1757694972475,26.06,238.47,238.42,0.71]
[1757694973371,26.06,238.47,238.43,0.71]
[1757694973686,26.06,238.47,238.44,0.71]
[1757694973866,26.06,238.47,238.45,0.71]
[1757694974183,0.06,238.47,238.46,0.71]
[1757694974381,0.06,238.47,238.41,4.32439113]
[1757694974557,0.06,238.47,238.42,0.71]
[1757694974761,0.06,238.47,238.43,13.59559401]
[1757694974966,0.06,238.47,238.45,13.59559401]
[1757694975284,0.06,238.47,238.46,46.39559401]
[1757694975478,0.06,238.47,238.46,0.71]
[1757694975685,0.06,238.47,238.41,93.32559401]
[1757694975908,4.97341258,238.47,238.41,0.84]
[1757694976066,10.10284461,238.46,238.41,0.13]
[1757694976391,33.75750025,238.47,238.41,0.84]
[1757694976392,2.78408767,238.45,238.41,0.84]
[1757694976566,2.78408767,238.44,238.42,0.71]
[1757694976770,2.78408767,238.46,238.41,0.13]
[1757694976971,2.78408767,238.45,238.42,0.71]
[1757694977186,2.78408767,238.44,238.42,0.71]
[1757694977370,2.78408767,238.43,238.41,0.13]
[1757694977568,26.06,238.47,238.41,0.13]
[1757694977769,2.79358751,238.46,238.41,0.13]
[1757694977970,2.79358751,238.45,238.41,0.13]
[1757694978171,2.79358751,238.44,238.41,0.13]
[1757694978372,2.79358751,238.43,238.41,0.13]
[1757694978670,2.79358751,238.42,238.41,0.13]
[1757694979761,3.51358751,238.42,238.41,0.13]
[1757694979962,17.81071112,238.42,238.41,0.13]
[1757694980384,13.61643212,238.42,238.41,0.13]
[1757694980584,2.79358751,238.42,238.41,0.13]
[1757694980974,2.79358751,238.42,238.41,0.84]
[1757694982174,2.79358751,238.42,238.41,0.13]
[1757694983191,6.26513366,238.42,238.41,0.13]
[1757694984795,6.26513366,238.42,238.41,0.84]
[1757694985388,2.79358751,238.42,238.41,0.84]
[1757694985695,2.79358751,238.42,238.41,80.44]
[1757694985998,2.79358751,238.42,238.41,79.73]
[1757694986374,6.96513366,238.42,238.41,79.73]
[1757694986583,21.30725747,238.42,238.41,72.6563644]
[1757694986986,26.0,238.39,238.38,0.03]
[1757694987195,28.79358751,238.39,238.38,0.03]
[1757694987987,29.49358751,238.39,238.38,0.03]
[1757694988182,28.79358751,238.39,238.38,0.03]
[1757694988609,29.49358751,238.39,238.38,0.03]
[1757694988780,33.68839433,238.39,238.38,0.03]
[1757694988984,43.79123894,238.39,238.38,0.03]
[1757694989985,33.68839433,238.39,238.38,0.03]
[1757694990188,43.79123894,238.39,238.38,0.03]
[1757694991507,56.04107839,238.39,238.38,0.03]
[1757694991679,59.55762474,238.39,238.38,0.03]
[1757694991879,69.6366724,238.39,238.38,0.03]
[1757694992505,65.97322689,238.39,238.38,0.03]
[1757694994319,97.4342781,238.39,238.31,0.1]
[1757694994486,6.4393991,238.32,238.31,0.1]
[1757694994691,42.03298661,238.32,238.31,0.1]
[1757694994895,2.79358751,238.32,238.31,0.1]
[1757694995414,12.24983945,238.39,238.31,0.81]
[1757694995614,2.80977903,238.38,238.31,0.81]
[1757694995789,26.0,238.36,238.31,0.81]
[1757694995990,28.80977903,238.36,238.31,0.81]
[1757694996320,2.80977903,238.35,238.31,5.00620698]
[1757694996494,2.80977903,238.35,238.32,0.71]
[1757694996695,2.80979876,238.37,238.32,0.71]
[1757694996990,2.80979876,238.36,238.33,0.71]
[1757694997191,26.0,238.39,238.33,0.71]
[1757694997400,28.80979876,238.39,238.33,0.71]
[1757694997718,2.80979876,238.38,238.33,0.71]
[1757694997923,2.80979876,238.38,238.34,0.71]
[1757694998125,2.80979876,238.4,238.35,0.71]
[1757694998447,2.80979876,238.41,238.36,0.71]
[1757694998594,26.0,238.39,238.36,0.71]
[1757694998794,33.1393991,238.39,238.32,0.71]
[1757694999113,9.24919786,238.38,238.32,0.71]
[1757694999310,6.4393991,238.37,238.31,0.1]
[1757694999508,6.4393991,238.34,238.31,0.1]
[1757694999821,6.4393991,238.32,238.31,0.1]
[1757695000117,10.63543803,238.32,238.31,0.1]
[1757695000317,11.33543803,238.32,238.31,0.1]
[1757695000816,10.63543803,238.32,238.31,0.1]
[1757695001008,36.63543803,238.32,238.31,0.1]
[1757695001209,39.44523679,238.32,238.31,0.1]
[1757695001924,72.96523679,238.32,238.31,0.1]
[1757695004202,66.52583769,238.32,238.31,0.1]
[1757695004412,72.96523679,238.32,238.31,0.1]
[1757695005126,35.24919786,238.32,238.31,0.1]
[1757695005302,4.19529719,238.37,238.31,0.81]
[1757695005503,32.82,238.36,238.31,0.81]
[1757695005724,6.4393991,238.34,238.31,0.81]
[1757695005904,6.4393991,238.32,238.31,0.1]
[1757695006705,6.4393991,238.32,238.28,0.3]
[1757695006904,26.0,238.35,238.25,4.19727177]
[1757695007123,6.4393991,238.34,238.25,4.19727177]
[1757695007314,58.82,238.35,238.25,4.19727177]
[1757695007315,58.82,238.35,238.26,13.59559401]
[1757695007504,32.4393991,238.36,238.26,13.59559401]
[1757695007904,32.4393991,238.36,238.27,4.19691946]
[1757695008609,6.4393991,238.35,238.28,0.7]
[1757695008933,26.0,238.36,238.28,0.7]
[1757695009423,32.4393991,238.36,238.28,0.7]
[1757695010532,39.20401998,238.38,238.29,4.1965672]
[1757695010533,2.18903326,238.38,238.29,4.1965672]
[1757695010832,6.4393991,238.4,238.3,0.7]
[1757695011138,32.82,238.41,238.31,13.59559401]
[1757695011437,32.82,238.41,238.32,0.7]
[1757695011438,39.2593991,238.41,238.32,0.7]
[1757695011628,26.0,238.38,238.32,0.7]
[1757695011831,39.2593991,238.41,238.32,0.7]
[1757695012336,39.2593991,238.41,238.33,4.19586287]
[1757695013339,65.2593991,238.41,238.33,4.19586287]
[1757695014029,0.68,238.4,238.31,17.79165676]
[1757695014227,7.1193991,238.39,238.31,17.79165676]
[1757695014538,0.68,238.39,238.31,18.46165676]
[1757695015237,6.4393991,238.4,238.31,18.46165676]
[1757695015413,0.68,238.39,238.31,18.46165676]
[1757695015614,0.68,238.39,238.31,98.06165676]
[1757695016037,6.4393991,238.4,238.31,98.06165676]
[1757695016242,0.68,238.39,238.31,98.06165676]
[1757695018652,6.4393991,238.36,238.29,79.6]
[1757695018813,0.68,238.36,238.29,4.1964747]
[1757695019216,26.0,238.37,238.3,0.67]
[1757695019217,32.4393991,238.37,238.3,0.67]
[1757695019740,0.68,238.39,238.3,0.67]
[1757695019948,26.0,238.37,238.3,0.67]
[1757695020826,26.0,238.37,238.31,4.19621501]
[1757695021147,0.06,238.39,238.31,15.35675254]
[1757695021319,2.86987325,238.39,238.31,15.35675254]
[1757695021519,28.86987325,238.39,238.32,0.67]
[1757695021921,0.06,238.39,238.33,46.41559401]
[1757695022238,0.06,238.39,238.34,0.67]
[1757695022638,0.06,238.39,238.36,13.59559401]
[1757695022817,0.06,238.39,238.38,13.59559401]
[1757695023252,0.06,238.39,238.38,14.26559401]
[1757695023934,0.06,238.39,238.37,4.19515878]
[1757695024848,0.06,238.39,238.36,79.6]
[1757695025242,0.68,238.38,238.36,79.6]
[1757695025420,0.68,238.37,238.36,79.6]
[1757695025625,0.68,238.37,238.34,4.19552483]
[1757695025824,7.1793991,238.39,238.34,4.19552483]
[1757695026025,0.74,238.39,238.34,4.19552483]
[1757695026218,0.68,238.38,238.33,4.19586287]
[1757695026426,0.68,238.37,238.32,4.19603145]
[1757695026628,0.68,238.36,238.32,36.99603145]
[1757695026823,0.68,238.36,238.31,79.6]
[1757695027123,0.06,238.39,238.32,0.67]
[1757695027533,7.1193991,238.38,238.31,13.59559401]
[1757695028025,0.68,238.38,238.31,46.39559401]
[1757695028433,0.68,238.38,238.32,4.19603893]
[1757695029149,7.1193991,238.37,238.29,13.59559401]
[1757695029344,0.68,238.37,238.31,32.8]
[1757695030043,0.68,238.36,238.31,32.8]
[1757695030227,0.68,238.35,238.3,4.19635007]
[1757695032348,6.4393991,238.37,238.29,112.4]
[1757695032552,7.1193991,238.34,238.29,79.6]
[1757695032741,0.68,238.33,238.29,79.6]
[1757695032941,0.68,238.32,238.29,79.6]
[1757695033746,0.68,238.34,238.29,79.6]
[1757695033961,0.68,238.33,238.29,79.6]
[1757695034165,0.68,238.33,238.29,83.79648498]
[1757695034757,26.68,238.35,238.29,83.79648498]
[1757695035444,26.06,238.39,238.29,83.79648498]
[1757695035655,26.0,238.35,238.29,83.79648498]
[1757695036046,0.68,238.36,238.29,83.79648498]
[1757695037232,32.4393991,238.37,238.29,83.79648498]